[Event "January 2 Early 2024"]
[Site "https://www.chess.com"]
[Date "2024.01.02"]
[Round "6"]
[White "Mammadova, Narmin"]
[Black "Garcia Almaguer, Juan Manuel"]
[Result "0-1"]
[Board "81"]
[TimeControl "180+1"]
[WhiteFideId "13403710"]
[BlackFideId "5110491"]
[WhiteElo "2643"]
[BlackElo "2503"]
[WhiteTeam "AZE"]
[BlackTeam "MEX"]
[WhiteClock "0:00:05"]
[BlackClock "0:00:10"]

1. e4 {[%clk 0:02:59]}  e5 {[%clk 0:02:58]} 2. Nf3 {[%clk 0:02:59]}  Nc6 {[%clk 0:02:58]} 3. Nc3 {[%clk 0:03:00]}  Nf6 {[%clk 0:02:54]} 4. Be2 {[%clk 0:03:00]}  Bb4 {[%clk 0:02:46]} 5. Nd5 {[%clk 0:02:58]}  O-O {[%clk 0:02:44]} 6. c3 {[%clk 0:02:51]}  Bd6 {[%clk 0:02:42]} 7. d3 {[%clk 0:02:46]}  Nxd5 {[%clk 0:02:42]} 8. exd5 {[%clk 0:02:46]}  Ne7 {[%clk 0:02:42]} 9. c4 {[%clk 0:02:47]}  Ng6 {[%clk 0:02:37]} 10. O-O {[%clk 0:02:44]}  c5 {[%clk 0:02:37]} 11. a3 {[%clk 0:02:20]}  h6 {[%clk 0:02:11]} 12. Bd2 {[%clk 0:02:19]}  b6 {[%clk 0:02:08]} 13. b4 {[%clk 0:02:18]}  f5 {[%clk 0:02:09]} 14. Qc2 {[%clk 0:02:08]}  Re8 {[%clk 0:02:01]} 15. Rfe1 {[%clk 0:02:02]}  Qf6 {[%clk 0:01:50]} 16. Bf1 {[%clk 0:01:22]}  Bf8 {[%clk 0:01:42]} 17. Rab1 {[%clk 0:01:00]}  d6 {[%clk 0:01:40]} 18. a4 {[%clk 0:01:00]}  e4 {[%clk 0:01:30]} 19. Bc3 {[%clk 0:00:49]}  Qf7 {[%clk 0:01:19]} 20. Nd2 {[%clk 0:00:45]}  exd3 {[%clk 0:01:03]} 21. Qxd3 {[%clk 0:00:44]}  Rxe1 {[%clk 0:01:01]} 22. Rxe1 {[%clk 0:00:45]}  Bd7 {[%clk 0:01:01]} 23. b5 {[%clk 0:00:27]}  a6 {[%clk 0:01:01]} 24. Ra1 {[%clk 0:00:23]}  Ne5 {[%clk 0:00:49]} 25. Bxe5 {[%clk 0:00:16]}  dxe5 {[%clk 0:00:50]} 26. f3 {[%clk 0:00:11]}  Bd6 {[%clk 0:00:42]} 27. Re1 {[%clk 0:00:09]}  axb5 {[%clk 0:00:40]} 28. axb5 {[%clk 0:00:10]}  Ra2 {[%clk 0:00:40]} 29. Kh1 {[%clk 0:00:08]}  Qh5 {[%clk 0:00:36]} 30. g3 {[%clk 0:00:07]}  Qg5 {[%clk 0:00:35]} 31. Re2 {[%clk 0:00:05]}  Ra1 {[%clk 0:00:34]} 32. Kg1 {[%clk 0:00:05]}  h5 {[%clk 0:00:30]} 33. Qc3 {[%clk 0:00:06]}  Ra2 {[%clk 0:00:23]} 34. Kf2 {[%clk 0:00:03]}  Qf6 {[%clk 0:00:17]} 35. Bg2 {[%clk 0:00:03]}  h4 {[%clk 0:00:17]} 36. Qb3 {[%clk 0:00:04]}  hxg3+ {[%clk 0:00:17]} 37. hxg3 {[%clk 0:00:04]}  Ra8 {[%clk 0:00:17]} 38. Nf1 {[%clk 0:00:04]}  Qg5 {[%clk 0:00:17]} 39. Ra2 {[%clk 0:00:04]}  Re8 {[%clk 0:00:17]} 40. Re2 {[%clk 0:00:04]}  f4 {[%clk 0:00:13]} 41. g4 {[%clk 0:00:04]}  Qh4+ {[%clk 0:00:13]} 42. Kg1 {[%clk 0:00:05]}  Kf7 {[%clk 0:00:13]} 43. Ra2 {[%clk 0:00:05]}  Rh8 {[%clk 0:00:13]} 44. Ra7 {[%clk 0:00:05]}  Ke7 {[%clk 0:00:13]} 45. Qa4 {[%clk 0:00:06]}  e4 {[%clk 0:00:12]} 46. Qa6 {[%clk 0:00:06]}  exf3 {[%clk 0:00:12]} 47. Bxf3 {[%clk 0:00:06]}  Be5 {[%clk 0:00:10]} 48. Qb7 {[%clk 0:00:06]}  Bd4+ {[%clk 0:00:10]} 49. Kg2 {[%clk 0:00:05]}  Qf2# {[%clk 0:00:10]} 0-1

[Event "January 2 Early 2024"]
[Site "https://www.chess.com"]
[Date "2024.01.02"]
[Round "6"]
[White "Poltorak, Sebastian"]
[Black "Tiarks, Jann-Christian"]
[Result "0-1"]
[Board "84"]
[TimeControl "180+1"]
[WhiteFideId "1199498"]
[BlackFideId "12951595"]
[WhiteElo "2636"]
[BlackElo "2433"]
[WhiteTeam "POL"]
[BlackTeam "GER"]
[WhiteClock "0:00:13"]
[BlackClock "0:00:56"]

1. d4 {[%clk 0:03:00]}  c5 {[%clk 0:02:59]} 2. d5 {[%clk 0:02:54]}  d6 {[%clk 0:02:59]} 3. e4 {[%clk 0:02:48]}  e5 {[%clk 0:03:00]} 4. Be3 {[%clk 0:02:42]}  Nf6 {[%clk 0:02:58]} 5. Nd2 {[%clk 0:02:40]}  Be7 {[%clk 0:02:57]} 6. f3 {[%clk 0:02:38]}  Nbd7 {[%clk 0:02:57]} 7. a4 {[%clk 0:02:37]}  Nf8 {[%clk 0:02:57]} 8. Ne2 {[%clk 0:02:37]}  Ng6 {[%clk 0:02:57]} 9. g3 {[%clk 0:02:34]}  O-O {[%clk 0:02:56]} 10. Bg2 {[%clk 0:02:34]}  Ne8 {[%clk 0:02:53]} 11. O-O {[%clk 0:02:33]}  Bg5 {[%clk 0:02:53]} 12. Bf2 {[%clk 0:02:32]}  Bxd2 {[%clk 0:02:52]} 13. Qxd2 {[%clk 0:02:32]}  f5 {[%clk 0:02:52]} 14. exf5 {[%clk 0:02:31]}  Bxf5 {[%clk 0:02:52]} 15. c4 {[%clk 0:02:30]}  Nf6 {[%clk 0:02:51]} 16. Nc3 {[%clk 0:02:30]}  Qd7 {[%clk 0:02:49]} 17. Rae1 {[%clk 0:02:30]}  Bh3 {[%clk 0:02:48]} 18. Be3 {[%clk 0:02:27]}  Bxg2 {[%clk 0:02:48]} 19. Kxg2 {[%clk 0:02:27]}  Rf7 {[%clk 0:02:44]} 20. Bg5 {[%clk 0:02:26]}  Raf8 {[%clk 0:02:44]} 21. Bxf6 {[%clk 0:02:27]}  Rxf6 {[%clk 0:02:44]} 22. Ne4 {[%clk 0:02:26]}  Rf5 {[%clk 0:02:43]} 23. b3 {[%clk 0:02:21]}  Rh5 {[%clk 0:02:42]} 24. h4 {[%clk 0:02:11]}  Rhf5 {[%clk 0:02:37]} 25. Ng5 {[%clk 0:02:09]}  Re8 {[%clk 0:02:19]} 26. Re3 {[%clk 0:01:55]}  b6 {[%clk 0:02:18]} 27. Rfe1 {[%clk 0:01:53]}  h6 {[%clk 0:02:17]} 28. Ne4 {[%clk 0:01:42]}  Ref8 {[%clk 0:02:14]} 29. Nf2 {[%clk 0:01:40]}  Qf7 {[%clk 0:02:09]} 30. Qe2 {[%clk 0:01:39]}  Rf4 {[%clk 0:01:50]} 31. Ne4 {[%clk 0:01:25]}  Rxh4 {[%clk 0:01:43]} 32. Nxd6 {[%clk 0:01:19]}  Qd7 {[%clk 0:01:42]} 33. Kg1 {[%clk 0:00:47]}  Rh3 {[%clk 0:01:18]} 34. Qg2 {[%clk 0:00:47]}  h5 {[%clk 0:01:13]} 35. Ne4 {[%clk 0:00:33]}  h4 {[%clk 0:01:13]} 36. Kf2 {[%clk 0:00:17]}  hxg3+ {[%clk 0:01:09]} 37. Nxg3 {[%clk 0:00:18]}  Nh4 {[%clk 0:01:02]} 38. Qg1 {[%clk 0:00:18]}  Qf7 {[%clk 0:00:58]} 39. Ke2 {[%clk 0:00:16]}  Nxf3 {[%clk 0:00:57]} 40. Qf2 {[%clk 0:00:16]}  Rh2 {[%clk 0:00:56]} 41. Rf1 {[%clk 0:00:13]}  Rxf2+ {[%clk 0:00:55]} 42. Rxf2 {[%clk 0:00:13]}  Nd4+ {[%clk 0:00:56]} 0-1

[Event "January 2 Early 2024"]
[Site "https://www.chess.com"]
[Date "2024.01.02"]
[Round "6"]
[White "Begunov, Konstantin"]
[Black "Manukyan, Sargis A."]
[Result "0-1"]
[Board "86"]
[TimeControl "180+1"]
[WhiteFideId "4118510"]
[BlackFideId "13303970"]
[WhiteElo "2427"]
[BlackElo "2634"]
[WhiteTeam "RUS"]
[BlackTeam "ARM"]
[WhiteClock "0:00:09"]
[BlackClock "0:01:07"]

1. d4 {[%clk 0:03:00]}  d5 {[%clk 0:02:59]} 2. c4 {[%clk 0:03:01]}  e6 {[%clk 0:02:59]} 3. Nc3 {[%clk 0:03:00]}  Nf6 {[%clk 0:02:59]} 4. cxd5 {[%clk 0:03:00]}  Nxd5 {[%clk 0:02:59]} 5. g3 {[%clk 0:02:58]}  Nxc3 {[%clk 0:02:59]} 6. bxc3 {[%clk 0:02:57]}  c5 {[%clk 0:02:59]} 7. Bg2 {[%clk 0:02:56]}  cxd4 {[%clk 0:02:59]} 8. cxd4 {[%clk 0:02:57]}  Bb4+ {[%clk 0:02:59]} 9. Bd2 {[%clk 0:02:57]}  Qxd4 {[%clk 0:02:49]} 10. Rc1 {[%clk 0:02:00]}  O-O {[%clk 0:02:41]} 11. Nf3 {[%clk 0:01:53]}  Bxd2+ {[%clk 0:02:41]} 12. Nxd2 {[%clk 0:01:45]}  Nc6 {[%clk 0:02:38]} 13. O-O {[%clk 0:01:42]}  Bd7 {[%clk 0:02:36]} 14. Nc4 {[%clk 0:01:33]}  Qxd1 {[%clk 0:02:34]} 15. Rfxd1 {[%clk 0:01:34]}  Rfd8 {[%clk 0:02:33]} 16. Nd6 {[%clk 0:01:29]}  Na5 {[%clk 0:01:49]} 17. Nxb7 {[%clk 0:01:22]}  Nxb7 {[%clk 0:01:48]} 18. Bxb7 {[%clk 0:01:23]}  Rab8 {[%clk 0:01:48]} 19. Rc7 {[%clk 0:01:19]}  Bb5 {[%clk 0:01:40]} 20. Rxd8+ {[%clk 0:01:11]}  Rxd8 {[%clk 0:01:41]} 21. Bf3 {[%clk 0:01:10]}  a6 {[%clk 0:01:39]} 22. Ra7 {[%clk 0:01:05]}  g6 {[%clk 0:01:37]} 23. a4 {[%clk 0:00:52]}  Bc4 {[%clk 0:01:19]} 24. e3 {[%clk 0:00:39]}  Rd2 {[%clk 0:01:11]} 25. Rc7 {[%clk 0:00:19]}  Rc2 {[%clk 0:01:09]} 26. Bb7 {[%clk 0:00:13]}  Rc1+ {[%clk 0:01:07]} 27. Kg2 {[%clk 0:00:09]}  Bf1+ {[%clk 0:01:07]} 0-1

[Event "January 2 Early 2024"]
[Site "https://www.chess.com"]
[Date "2024.01.02"]
[Round "6"]
[White "Domingo Nunez, Ruben"]
[Black "Kraus, Tomas"]
[Result "1-0"]
[Board "87"]
[TimeControl "180+1"]
[WhiteFideId "22245570"]
[BlackFideId "331708"]
[WhiteElo "2629"]
[BlackElo "2405"]
[WhiteTeam "ESP"]
[BlackTeam "CZE"]
[WhiteClock "0:00:34"]
[BlackClock "0:00:08"]

1. Nf3 {[%clk 0:02:42]}  Nf6 {[%clk 0:02:53]} 2. d4 {[%clk 0:02:40]}  d5 {[%clk 0:02:52]} 3. Bf4 {[%clk 0:02:41]}  Bf5 {[%clk 0:02:50]} 4. e3 {[%clk 0:02:40]}  e6 {[%clk 0:02:51]} 5. Bd3 {[%clk 0:02:39]}  Bg6 {[%clk 0:02:50]} 6. Bxg6 {[%clk 0:02:39]}  hxg6 {[%clk 0:02:51]} 7. c4 {[%clk 0:02:39]}  Bd6 {[%clk 0:02:48]} 8. Bxd6 {[%clk 0:02:36]}  Qxd6 {[%clk 0:02:49]} 9. c5 {[%clk 0:02:36]}  Qd7 {[%clk 0:02:46]} 10. Ne5 {[%clk 0:02:35]}  Qd8 {[%clk 0:02:34]} 11. Qb3 {[%clk 0:02:34]}  b6 {[%clk 0:02:34]} 12. Nc3 {[%clk 0:02:06]}  Nfd7 {[%clk 0:02:29]} 13. Qa4 {[%clk 0:01:59]}  O-O {[%clk 0:02:04]} 14. Nd3 {[%clk 0:01:56]}  Qe7 {[%clk 0:01:55]} 15. b4 {[%clk 0:01:44]}  c6 {[%clk 0:01:27]} 16. f4 {[%clk 0:01:37]}  b5 {[%clk 0:01:25]} 17. Qb3 {[%clk 0:01:37]}  f6 {[%clk 0:01:21]} 18. O-O {[%clk 0:01:36]}  Kh8 {[%clk 0:01:20]} 19. a4 {[%clk 0:01:36]}  bxa4 {[%clk 0:01:08]} 20. Rxa4 {[%clk 0:01:37]}  e5 {[%clk 0:01:09]} 21. fxe5 {[%clk 0:01:29]}  fxe5 {[%clk 0:01:06]} 22. Rxf8+ {[%clk 0:01:29]}  Qxf8 {[%clk 0:01:06]} 23. dxe5 {[%clk 0:00:56]}  Qf5 {[%clk 0:00:55]} 24. Nxd5 {[%clk 0:00:50]}  Qe6 {[%clk 0:00:55]} 25. N3f4 {[%clk 0:00:47]}  Qf5 {[%clk 0:00:20]} 26. Ne7 {[%clk 0:00:34]}  Qf7 {[%clk 0:00:08]} 27. Qxf7 {[%clk 0:00:34]} 1-0

[Event "January 2 Early 2024"]
[Site "https://www.chess.com"]
[Date "2024.01.02"]
[Round "6"]
[White "Souleidis, Georgios"]
[Black "Adelman, Charles"]
[Result "1-0"]
[Board "89"]
[TimeControl "180+1"]
[WhiteFideId "4206827"]
[BlackFideId "2003597"]
[WhiteElo "2626"]
[BlackElo "2222"]
[WhiteTeam "GRE"]
[BlackTeam "USA"]
[WhiteClock "0:00:06"]
[BlackClock "0:00:00"]

1. e4 {[%clk 0:03:00]}  Nf6 {[%clk 0:03:00]} 2. e5 {[%clk 0:03:00]}  Nd5 {[%clk 0:03:00]} 3. d4 {[%clk 0:03:01]}  d6 {[%clk 0:03:01]} 4. Nf3 {[%clk 0:03:02]}  dxe5 {[%clk 0:03:01]} 5. Nxe5 {[%clk 0:03:03]}  c6 {[%clk 0:03:00]} 6. Be2 {[%clk 0:03:01]}  Bf5 {[%clk 0:03:00]} 7. O-O {[%clk 0:03:01]}  e6 {[%clk 0:03:01]} 8. a3 {[%clk 0:03:00]}  Be7 {[%clk 0:03:00]} 9. c4 {[%clk 0:03:00]}  Nb6 {[%clk 0:02:59]} 10. Nc3 {[%clk 0:02:59]}  O-O {[%clk 0:02:59]} 11. Be3 {[%clk 0:02:54]}  N8d7 {[%clk 0:02:58]} 12. Nf3 {[%clk 0:02:54]}  h6 {[%clk 0:02:57]} 13. h3 {[%clk 0:02:42]}  Nf6 {[%clk 0:02:56]} 14. Qb3 {[%clk 0:02:36]}  Qc7 {[%clk 0:02:44]} 15. a4 {[%clk 0:02:23]}  a5 {[%clk 0:02:37]} 16. d5 {[%clk 0:02:23]}  Bb4 {[%clk 0:02:33]} 17. Rac1 {[%clk 0:02:05]}  Nbd7 {[%clk 0:02:03]} 18. Nd4 {[%clk 0:01:36]}  Nc5 {[%clk 0:01:58]} 19. Qd1 {[%clk 0:01:24]}  Rad8 {[%clk 0:01:52]} 20. Nxf5 {[%clk 0:01:23]}  exf5 {[%clk 0:01:52]} 21. Bf3 {[%clk 0:01:15]}  Nfe4 {[%clk 0:01:49]} 22. Na2 {[%clk 0:00:58]}  Qd7 {[%clk 0:01:31]} 23. dxc6 {[%clk 0:00:47]}  Qxc6 {[%clk 0:01:29]} 24. Nxb4 {[%clk 0:00:40]}  axb4 {[%clk 0:01:24]} 25. Qc2 {[%clk 0:00:40]}  Qxa4 {[%clk 0:01:20]} 26. Bxe4 {[%clk 0:00:40]}  b3 {[%clk 0:01:11]} 27. Qc3 {[%clk 0:00:14]}  Nxe4 {[%clk 0:01:11]} 28. Qe5 {[%clk 0:00:15]}  Qd7 {[%clk 0:00:57]} 29. Rcd1 {[%clk 0:00:11]}  Qe6 {[%clk 0:00:55]} 30. Qb5 {[%clk 0:00:11]}  Qc6 {[%clk 0:00:31]} 31. Qxb3 {[%clk 0:00:10]}  Rc8 {[%clk 0:00:29]} 32. Rc1 {[%clk 0:00:10]}  Rfd8 {[%clk 0:00:15]} 33. Rc2 {[%clk 0:00:09]}  Nd6 {[%clk 0:00:12]} 34. Rfc1 {[%clk 0:00:09]}  Ne4 {[%clk 0:00:10]} 35. c5 {[%clk 0:00:08]}  Qg6 {[%clk 0:00:09]} 36. Qc4 {[%clk 0:00:07]}  Rc6 {[%clk 0:00:08]} 37. b4 {[%clk 0:00:07]}  Qf6 {[%clk 0:00:04]} 38. Bf4 {[%clk 0:00:06]}  Re6 {[%clk 0:00:04]} 39. b5 {[%clk 0:00:06]}  Ng5 {[%clk 0:00:03]} 40. Bxg5 {[%clk 0:00:06]}  Qxg5 {[%clk 0:00:03]} 41. c6 {[%clk 0:00:05]}  bxc6 {[%clk 0:00:03]} 42. bxc6 {[%clk 0:00:06]}  Rc8 {[%clk 0:00:03]} 43. c7 {[%clk 0:00:07]}  Qe7 {[%clk 0:00:02]} 44. Qc5 {[%clk 0:00:06]}  Qxc5 {[%clk 0:00:02]} 45. Rxc5 {[%clk 0:00:07]}  Re7 {[%clk 0:00:02]} 46. f4 {[%clk 0:00:06]}  Kf8 {[%clk 0:00:02]} 47. Kf2 {[%clk 0:00:06]}  Ke8 {[%clk 0:00:02]} 48. Kf3 {[%clk 0:00:07]}  Kd7 {[%clk 0:00:02]} 49. Rd1+ {[%clk 0:00:07]}  Ke8 {[%clk 0:00:02]} 50. Rdc1 {[%clk 0:00:07]}  Kd7 {[%clk 0:00:02]} 51. Rxf5 {[%clk 0:00:06]}  Rxc7 {[%clk 0:00:02]} 52. Rd5+ {[%clk 0:00:06]}  Kc8 {[%clk 0:00:00]} 53. Rcd1 {[%clk 0:00:06]} 1-0

[Event "January 2 Early 2024"]
[Site "https://www.chess.com"]
[Date "2024.01.02"]
[Round "6"]
[White "Tari, Aryan"]
[Black "Z_Chess6"]
[Result "1-0"]
[Board "91"]
[TimeControl "180+1"]
[WhiteFideId "1510045"]
[WhiteElo "2915"]
[BlackElo "2200"]
[WhiteTeam "NOR"]
[WhiteClock "0:02:53"]
[BlackClock "0:02:39"]

1. b3 {[%clk 0:03:00]}  d5 {[%clk 0:02:59]} 2. Bb2 {[%clk 0:03:00]}  Nf6 {[%clk 0:03:00]} 3. e3 {[%clk 0:03:00]}  Bf5 {[%clk 0:03:00]} 4. f4 {[%clk 0:02:58]}  h6 {[%clk 0:02:56]} 5. Nf3 {[%clk 0:02:58]}  e6 {[%clk 0:02:56]} 6. Be2 {[%clk 0:02:56]}  c5 {[%clk 0:02:56]} 7. O-O {[%clk 0:02:56]}  Nc6 {[%clk 0:02:57]} 8. d3 {[%clk 0:02:57]}  Be7 {[%clk 0:02:55]} 9. Ne5 {[%clk 0:02:55]}  O-O {[%clk 0:02:53]} 10. Nd2 {[%clk 0:02:55]}  Nxe5 {[%clk 0:02:39]} 11. fxe5 {[%clk 0:02:53]}  Ng4 {[%clk 0:02:39]} 12. Bxg4 {[%clk 0:02:53]} 1-0

[Event "January 2 Early 2024"]
[Site "https://www.chess.com"]
[Date "2024.01.02"]
[Round "6"]
[White "Kosteniuk, Alexandra"]
[Black "Estrada Nieto, Julian"]
[Result "1-0"]
[Board "93"]
[TimeControl "180+1"]
[WhiteFideId "4128125"]
[BlackFideId "5101018"]
[WhiteElo "2753"]
[BlackElo "2495"]
[WhiteTeam "SUI"]
[BlackTeam "ESP"]
[WhiteClock "0:00:54"]
[BlackClock "0:00:01"]

1. c4 {[%clk 0:03:00]}  e5 {[%clk 0:02:59]} 2. Nc3 {[%clk 0:03:01]}  Nf6 {[%clk 0:03:00]} 3. g3 {[%clk 0:03:01]}  d5 {[%clk 0:02:55]} 4. cxd5 {[%clk 0:03:01]}  Nxd5 {[%clk 0:02:55]} 5. Bg2 {[%clk 0:03:02]}  Nb6 {[%clk 0:02:56]} 6. Nf3 {[%clk 0:03:01]}  Nc6 {[%clk 0:02:56]} 7. O-O {[%clk 0:03:01]}  Be7 {[%clk 0:02:56]} 8. b3 {[%clk 0:03:02]}  O-O {[%clk 0:02:56]} 9. Bb2 {[%clk 0:03:02]}  f5 {[%clk 0:02:55]} 10. d3 {[%clk 0:02:41]}  Bf6 {[%clk 0:02:56]} 11. Nd2 {[%clk 0:02:38]}  Be6 {[%clk 0:02:44]} 12. Rc1 {[%clk 0:02:36]}  Nd5 {[%clk 0:02:43]} 13. Na4 {[%clk 0:02:31]}  Rb8 {[%clk 0:01:40]} 14. Nc5 {[%clk 0:02:30]}  Bc8 {[%clk 0:01:33]} 15. a3 {[%clk 0:02:14]}  b6 {[%clk 0:01:28]} 16. Nce4 {[%clk 0:02:09]}  fxe4 {[%clk 0:01:24]} 17. Rxc6 {[%clk 0:02:09]}  Bb7 {[%clk 0:01:17]} 18. Rc4 {[%clk 0:02:05]}  e3 {[%clk 0:01:04]} 19. Ne4 {[%clk 0:01:59]}  exf2+ {[%clk 0:01:03]} 20. Rxf2 {[%clk 0:02:00]}  Ne3 {[%clk 0:01:01]} 21. Qc1 {[%clk 0:02:00]}  Nxc4 {[%clk 0:00:57]} 22. Qxc4+ {[%clk 0:02:01]}  Kh8 {[%clk 0:00:55]} 23. a4 {[%clk 0:01:55]}  Bd5 {[%clk 0:00:50]} 24. Qc2 {[%clk 0:01:54]}  Qd7 {[%clk 0:00:45]} 25. b4 {[%clk 0:01:47]}  Be7 {[%clk 0:00:41]} 26. Rxf8+ {[%clk 0:01:30]}  Rxf8 {[%clk 0:00:40]} 27. Bxe5 {[%clk 0:01:31]}  Bxb4 {[%clk 0:00:34]} 28. Qb2 {[%clk 0:01:23]}  Bxe4 {[%clk 0:00:22]} 29. Qxb4 {[%clk 0:01:18]}  Re8 {[%clk 0:00:20]} 30. Qxe4 {[%clk 0:01:15]}  c5 {[%clk 0:00:15]} 31. e3 {[%clk 0:01:07]}  a6 {[%clk 0:00:13]} 32. h4 {[%clk 0:01:06]}  b5 {[%clk 0:00:13]} 33. axb5 {[%clk 0:01:06]}  axb5 {[%clk 0:00:13]} 34. h5 {[%clk 0:01:07]}  h6 {[%clk 0:00:11]} 35. Kh2 {[%clk 0:01:06]}  b4 {[%clk 0:00:10]} 36. d4 {[%clk 0:01:02]}  c4 {[%clk 0:00:08]} 37. Qg6 {[%clk 0:00:59]}  Re6 {[%clk 0:00:06]} 38. Qf5 {[%clk 0:00:56]}  b3 {[%clk 0:00:04]} 39. Qf8+ {[%clk 0:00:53]}  Kh7 {[%clk 0:00:04]} 40. Be4+ {[%clk 0:00:54]}  g6 {[%clk 0:00:01]} 41. Qh8# {[%clk 0:00:54]} 1-0

[Event "January 2 Early 2024"]
[Site "https://www.chess.com"]
[Date "2024.01.02"]
[Round "6"]
[White "Manolache, Marius"]
[Black "Korpics, Zsolt"]
[Result "1-0"]
[Board "95"]
[TimeControl "180+1"]
[WhiteFideId "1201530"]
[BlackFideId "705241"]
[WhiteElo "2680"]
[BlackElo "2494"]
[WhiteTeam "ROU"]
[BlackTeam "HUN"]
[WhiteClock "0:00:22"]
[BlackClock "0:00:00"]

1. d4 {[%clk 0:03:00]}  Nf6 {[%clk 0:03:00]} 2. Bg5 {[%clk 0:02:58]}  Ne4 {[%clk 0:02:59]} 3. Bf4 {[%clk 0:02:58]}  c5 {[%clk 0:02:54]} 4. f3 {[%clk 0:02:57]}  Qa5+ {[%clk 0:02:54]} 5. c3 {[%clk 0:02:57]}  Nf6 {[%clk 0:02:52]} 6. d5 {[%clk 0:02:58]}  d6 {[%clk 0:02:50]} 7. e4 {[%clk 0:02:58]}  g6 {[%clk 0:02:49]} 8. Na3 {[%clk 0:02:53]}  Bg7 {[%clk 0:02:47]} 9. Nc4 {[%clk 0:02:50]}  Qd8 {[%clk 0:02:47]} 10. a4 {[%clk 0:02:51]}  b6 {[%clk 0:02:39]} 11. Qd2 {[%clk 0:02:49]}  h5 {[%clk 0:02:14]} 12. h4 {[%clk 0:02:44]}  Bb7 {[%clk 0:02:09]} 13. Nh3 {[%clk 0:02:42]}  Nbd7 {[%clk 0:02:06]} 14. Ng5 {[%clk 0:02:43]}  a6 {[%clk 0:02:05]} 15. Be2 {[%clk 0:02:41]}  Nh7 {[%clk 0:01:31]} 16. Nxh7 {[%clk 0:02:39]}  Rxh7 {[%clk 0:01:31]} 17. Bg5 {[%clk 0:02:37]}  Ne5 {[%clk 0:01:24]} 18. Ne3 {[%clk 0:02:34]}  Qc7 {[%clk 0:01:17]} 19. b3 {[%clk 0:02:21]}  O-O-O {[%clk 0:00:39]} 20. Nc4 {[%clk 0:01:58]}  Nxc4 {[%clk 0:00:35]} 21. bxc4 {[%clk 0:01:57]}  a5 {[%clk 0:00:24]} 22. Kf2 {[%clk 0:01:50]}  Ba6 {[%clk 0:00:21]} 23. Rhb1 {[%clk 0:01:44]}  Kb7 {[%clk 0:00:21]} 24. Rb2 {[%clk 0:01:43]}  Ka7 {[%clk 0:00:21]} 25. Bd3 {[%clk 0:01:39]}  f6 {[%clk 0:00:18]} 26. Be3 {[%clk 0:01:38]}  Rhh8 {[%clk 0:00:11]} 27. e5 {[%clk 0:01:34]}  fxe5 {[%clk 0:00:09]} 28. Bxg6 {[%clk 0:01:34]}  Bf6 {[%clk 0:00:08]} 29. g3 {[%clk 0:01:33]}  Rdg8 {[%clk 0:00:07]} 30. Bf7 {[%clk 0:01:30]}  Rg7 {[%clk 0:00:07]} 31. Be6 {[%clk 0:01:30]}  Bc8 {[%clk 0:00:06]} 32. Bg5 {[%clk 0:00:56]}  Bxe6 {[%clk 0:00:06]} 33. dxe6 {[%clk 0:00:57]}  Rhg8 {[%clk 0:00:06]} 34. f4 {[%clk 0:00:54]}  exf4 {[%clk 0:00:06]} 35. gxf4 {[%clk 0:00:54]}  Bxg5 {[%clk 0:00:06]} 36. hxg5 {[%clk 0:00:55]}  Qc6 {[%clk 0:00:05]} 37. Qd5 {[%clk 0:00:52]}  Qc7 {[%clk 0:00:03]} 38. Rh1 {[%clk 0:00:48]}  Rf8 {[%clk 0:00:02]} 39. Kg3 {[%clk 0:00:43]}  Rg6 {[%clk 0:00:02]} 40. Rf2 {[%clk 0:00:39]}  Qc8 {[%clk 0:00:02]} 41. Re1 {[%clk 0:00:36]}  h4+ {[%clk 0:00:02]} 42. Kg4 {[%clk 0:00:34]}  h3 {[%clk 0:00:02]} 43. f5 {[%clk 0:00:34]}  Rg7 {[%clk 0:00:02]} 44. g6 {[%clk 0:00:32]}  Rh8 {[%clk 0:00:02]} 45. Rh2 {[%clk 0:00:32]}  Qf8 {[%clk 0:00:02]} 46. Rxh3 {[%clk 0:00:28]}  Rxh3 {[%clk 0:00:02]} 47. Kxh3 {[%clk 0:00:28]}  Qf6 {[%clk 0:00:02]} 48. Kg4 {[%clk 0:00:28]}  Rg8 {[%clk 0:00:03]} 49. Rh1 {[%clk 0:00:27]}  Qxc3 {[%clk 0:00:03]} 50. Rh7 {[%clk 0:00:24]}  Qf6 {[%clk 0:00:03]} 51. Rf7 {[%clk 0:00:23]}  Rh8 {[%clk 0:00:02]} 52. Rxf6 {[%clk 0:00:22]}  exf6 {[%clk 0:00:00]} 53. Qxd6 {[%clk 0:00:22]} 1-0